bitfinex-derivatives/quotes_SOLF0:USTF0_20250919
["timestamp","ask_amount","ask_price","bid_price","bid_amount"]
[1758298767944,3.7675,238.78,238.74,6.1]
[1758298768145,7.18,238.77,238.74,6.1]
[1758298768646,10.9477,238.77,238.74,6.1]
[1758298769248,10.9477,238.77,238.73,102.1]
[1758298769249,7.14,238.76,238.73,108.21]
[1758298770652,7.14,238.76,238.74,102.1]
[1758298771849,3.7677,238.77,238.74,102.1]
[1758298772054,3.7677,238.77,238.75,6.11]
[1758298772256,3.7672,238.79,238.75,6.11]
[1758298772453,10.9072,238.79,238.75,6.11]
[1758298772859,7.14,238.78,238.75,6.1388512]
[1758298773047,7.14,238.77,238.75,6.1388512]
[1758298773453,7.14,238.8,238.75,6.1388512]
[1758298773651,7.14,238.82,238.75,6.1388512]
[1758298774750,7.14,238.82,238.75,0.0288512]
[1758298774948,7.14,238.82,238.76,102.08]
[1758298775149,3.7677,238.77,238.76,102.08]
[1758298775555,10.9077,238.77,238.75,0.0288512]
[1758298775854,10.9077,238.77,238.76,102.08]
[1758298777553,3.7677,238.77,238.76,108.19]
[1758298779547,3.7677,238.77,238.76,102.08]
[1758298780851,3.7677,238.77,238.76,108.19]
[1758298781558,7.14,238.76,238.75,0.0288512]
[1758298781957,10.08435704,238.76,238.75,0.0288512]
[1758298785755,58.6186,238.73,238.65,6.11]
[1758298785961,7.14,238.7,238.65,6.11]
[1758298786266,58.6224,238.71,238.65,6.11]
[1758298786563,7.14,238.69,238.65,108.19]
[1758298786763,58.6224,238.71,238.65,108.19]
[1758298787063,3.7692,238.67,238.65,6.11]
[1758298787255,3.7692,238.67,238.65,108.19]
[1758298787857,0.02945058,238.69,238.64,316.64]
[1758298787858,3.7694,238.65,238.64,316.64]
[1758298788054,10.9094,238.65,238.64,418.72]
[1758298788257,10.9094,238.65,238.64,102.08]
[1758298788657,3.7698,238.63,238.56,3.7708]
[1758298788857,58.65775058,238.69,238.53,2.29182506]
[1758298788858,7.14,238.67,238.6,6.11]
[1758298789057,2.9431416,238.66,238.61,22.72]
[1758298789361,58.6375,238.65,238.51,3.7716]
[1758298789562,10.08201373,238.64,238.54,6.11]
[1758298789759,0.02736952,238.6,238.54,6.11]
[1758298790164,0.02736952,238.6,238.5,316.62]
[1758298790165,7.14,238.59,238.55,102.08]
[1758298790365,7.14,238.59,238.55,6.11]
[1758298790558,7.14,238.59,238.56,102.08]
[1758298790758,7.14,238.59,238.55,6.11]
[1758298790966,7.14,238.59,238.56,102.08]
[1758298791859,3.7706,238.58,238.56,102.08]
[1758298792568,3.7706,238.58,238.56,108.19]
[1758298792763,3.7706,238.58,238.56,108.21]
[1758298793970,3.7706,238.58,238.56,6.11]
[1758298794166,3.7706,238.58,238.56,108.21]
[1758298796572,3.7706,238.58,238.56,6.11]
[1758298796770,3.7706,238.58,238.57,102.1]
[1758298798365,3.7706,238.58,238.5,316.62]
[1758298798366,6.84,238.58,238.5,316.62]
[1758298798573,6.84,238.58,238.51,102.12]
[1758298799869,3.7713,238.54,238.5,316.62]
[1758298800173,3.7713,238.54,238.52,6.12]
[1758298800369,10.7213,238.54,238.5,316.62]
[1758298800574,6.95,238.53,238.5,6.12]
[1758298800769,6.95,238.53,238.51,102.12]
[1758298800970,6.95,238.53,238.44,6.12]
[1758298801174,6.95,238.53,238.46,6.12]
[1758298801669,10.7215,238.53,238.46,6.12]
[1758298801874,6.95,238.53,238.46,6.12]
[1758298802375,3.772,238.5,238.48,6.12]
[1758298802576,3.772,238.5,238.49,108.24]
[1758298803977,3.772,238.5,238.49,108.26]
[1758298804272,0.02710672,238.52,238.5,6.12]
[1758298809280,0.02710672,238.52,238.49,102.14]
[1758298810480,3.79870672,238.52,238.5,6.12]
[1758298810679,3.79870672,238.52,238.49,102.14]
[1758298810878,3.79870672,238.52,238.44,12.49375742]
[1758298811074,3.79870672,238.52,238.46,6.12]
[1758298811279,3.79870672,238.52,238.47,102.14]
[1758298811481,3.79870672,238.52,238.48,6.12]
[1758298811981,3.79870672,238.52,238.47,102.14]
[1758298812182,3.79870672,238.52,238.48,6.12]
[1758298812480,3.79870672,238.52,238.47,102.14]
[1758298812780,3.79870672,238.52,238.48,6.12]
[1758298813082,3.7718,238.51,238.45,6.12]
[1758298813282,6.95,238.51,238.45,6.12]
[1758298813494,65.6209,238.51,238.46,21.88]
[1758298813781,65.6209,238.51,238.37,6.12]
[1758298813782,65.6291,238.48,238.37,6.12]
[1758298813982,65.6291,238.48,238.39,6.12]
[1758298814378,0.03083265,238.46,238.4,102.14]
[1758298814580,0.03083265,238.46,238.4,108.26]
[1758298815380,3.7729,238.44,238.42,6.12]
[1758298816389,3.7731,238.42,238.37,6.12]
[1758298816584,6.98083265,238.46,238.37,6.12]
[1758298816782,3.7734,238.41,238.38,102.16]
[1758298816984,3.7734,238.41,238.39,6.12]
[1758298817183,58.6869,238.45,238.36,316.78]
[1758298817385,58.6939,238.42,238.37,102.16]
[1758298818091,6.95,238.41,238.37,102.16]
[1758298818692,3.7737,238.39,238.37,102.16]
[1758298818882,0.03032805,238.42,238.37,102.16]
[1758298819091,0.03032805,238.42,238.38,6.12]
[1758298819281,0.03032805,238.42,238.37,102.16]
[1758298819482,0.03032805,238.42,238.38,6.12]
[1758298819784,0.03032805,238.42,238.37,102.16]
[1758298819989,0.03032805,238.42,238.38,6.12]
[1758298820793,0.03032805,238.42,238.37,102.16]
[1758298821290,0.03032805,238.42,238.38,6.12]
[1758298821793,6.95,238.51,238.38,6.12]
[1758298822088,6.95,238.51,238.43,6.12]
[1758298822293,6.95,238.51,238.44,102.18]
[1758298822900,3.7721,238.49,238.45,6.12]
[1758298823089,3.7721,238.49,238.46,6.12]
[1758298823396,3.7721,238.49,238.45,0.03060219]
[1758298823790,3.7721,238.49,238.46,6.12]
[1758298824495,3.7721,238.49,238.45,1.50055401]
[1758298824691,3.7721,238.49,238.46,6.12]
[1758298825393,65.6214,238.51,238.45,0.03060219]
[1758298825694,65.6214,238.51,238.45,102.31060219]
[1758298826094,3.7724,238.47,238.45,102.31060219]
[1758298826294,3.7724,238.47,238.45,108.43060219]
[1758298826500,3.7724,238.47,238.46,6.12]
[1758298826887,3.7719,238.5,238.46,6.12]
[1758298827091,10.7219,238.5,238.46,6.12]
[1758298827496,3.7721,238.48,238.46,6.12]
[1758298828395,3.7724,238.47,238.45,0.03060219]
[1758298828698,3.7724,238.47,238.45,102.29060219]
[1758298829298,3.7724,238.47,238.45,0.03060219]
[1758298829889,11.0224,238.47,238.45,0.03060219]
[1758298831192,3.7724,238.47,238.45,0.03060219]
[1758298831593,3.7724,238.47,238.45,6.15060219]
[1758298832391,7.25,238.5,238.46,6.12]
[1758298832595,7.25,238.51,238.45,0.03060219]
[1758298832795,7.25,238.51,238.45,102.23060219]
[1758298833095,7.25,238.51,238.45,108.35060219]
[1758298833300,2.93590552,238.5,238.45,108.35060219]
[1758298833499,7.25,238.51,238.46,1.46995182]
[1758298833700,140.61310006,238.52,238.46,1.46995182]
[1758298833899,140.61310006,238.52,238.49,6.12]
[1758298834198,7.25,238.59,238.51,1.46995182]
[1758298834394,7.25,238.59,238.51,7.58995182]
[1758298834395,2.93301408,238.58,238.51,7.58995182]
[1758298834596,2.93301408,238.57,238.51,7.58995182]
[1758298834797,3.7709,238.56,238.52,6.15151526]
[1758298835000,7.25,238.59,238.52,0.03151526]
[1758298835198,7.25,238.59,238.52,6.15151526]
[1758298835598,60.12645182,238.57,238.52,0.03151526]
[1758298835801,2.93391439,238.56,238.52,0.03151526]
[1758298836004,3.7713,238.54,238.52,0.03151526]
[1758298836396,11.0213,238.54,238.52,0.03151526]
[1758298837195,3.7713,238.54,238.52,0.03151526]
[1758298838493,3.7713,238.54,238.53,6.12]
[1758298839400,3.7713,238.54,238.52,0.03151526]
[1758298840305,3.7713,238.54,238.52,6.15151526]
[1758298840608,11.0208,238.57,238.52,6.15151526]
[1758298840798,7.25,238.57,238.52,6.15151526]
[1758298841198,7.25,238.56,238.52,6.15151526]
[1758298841807,11.021,238.56,238.52,6.15151526]
[1758298844500,11.021,238.56,238.52,109.05151526]
[1758298844903,3.7705,238.59,238.53,6.12]
[1758298845109,3.7705,238.59,238.52,102.93151526]
[1758298845110,3.7705,238.59,238.55,6.12]
[1758298845306,7.25,238.58,238.52,0.03151526]
[1758298845506,58.6425,238.63,238.52,0.03151526]
[1758298845507,11.021,238.56,238.52,0.03151526]
[1758298845716,11.021,238.56,238.53,33.5]
[1758298846011,3.7712,238.54,238.52,0.03151526]
[1758298846209,7.25,238.53,238.52,0.03151526]
[1758298848403,7.25,238.48,238.37,6.12]
[1758298848608,7.25,238.48,238.38,64.16]
[1758298848803,7.25,238.48,238.4,1.46995182]
[1758298849004,3.7726,238.46,238.4,1.46995182]
[1758298849412,3.7728,238.44,238.37,7.58995182]
[1758298849610,3.7728,238.44,238.38,103.12]
[1758298849813,0.02938479,238.45,238.37,7.58995182]
[1758298850008,3.7731,238.42,238.37,6.12]
[1758298850213,3.7731,238.42,238.38,103.12]
[1758298851015,11.0231,238.42,238.38,103.12]
[1758298851314,11.0234,238.41,238.37,103.1]
[1758298851914,11.0234,238.41,238.37,109.25]
[1758298852615,3.7734,238.41,238.34,13.83012466]
[1758298852812,3.7734,238.41,238.35,103.08]
[1758298853014,7.25,238.43,238.36,6.15]
[1758298853211,0.03152426,238.4,238.37,1.46995182]
[1758298853914,0.03152426,238.4,238.38,6.15]
[1758298854317,0.03152426,238.4,238.37,1.46995182]
[1758298854718,0.03152426,238.4,238.38,6.15]
[1758298854918,0.03152426,238.4,238.36,7.61995182]
[1758298855119,7.28152426,238.4,238.37,103.24]
[1758298855515,0.03152426,238.4,238.37,103.24]
[1758298855721,0.03152426,238.4,238.38,6.15]
[1758298856122,0.03152426,238.4,238.38,109.39]
[1758298856319,0.03152426,238.4,238.39,7.61995182]
[1758298857922,0.03152426,238.4,238.39,110.85995182]
[1758298858117,0.03152426,238.4,238.39,7.61995182]
[1758298858318,0.03152426,238.4,238.39,110.83995182]
[1758298859523,0.03152426,238.4,238.39,7.61995182]
[1758298859723,0.03152426,238.4,238.39,110.83995182]
[1758298859921,0.03152426,238.4,238.39,7.61995182]
[1758298860226,0.03152426,238.4,238.39,110.81995182]
[1758298860817,0.03152426,238.4,238.39,6.15]
[1758298861024,0.03152426,238.4,238.39,109.33]
[1758298862427,0.03152426,238.4,238.39,6.15]
[1758298862827,0.03152426,238.4,238.39,109.29]
[1758298863228,0.03152426,238.4,238.39,103.14]
[1758298864231,0.03152426,238.4,238.39,109.29]
[1758298865329,0.03152426,238.4,238.34,12.36017284]
[1758298865535,6.59,238.39,238.35,103.1]
[1758298865935,6.59,238.39,238.35,109.25]
[1758298866235,6.59,238.39,238.35,6.15]
[1758298866436,6.59,238.39,238.36,103.16]
[1758298866934,6.59,238.39,238.36,102.1371]
[1758298867131,6.59,238.39,238.37,103.14]
[1758298867335,0.03152426,238.4,238.37,103.14]
[1758298867525,6.59,238.39,238.38,103.14]
[1758298867929,10.3635,238.39,238.38,103.14]
[1758298868132,10.3635,238.39,238.31,6.15]
[1758298868133,6.59,238.39,238.31,6.15]
[1758298868431,6.59,238.39,238.33,103.14]
[1758298869334,6.59,238.39,238.34,103.12]
[1758298869534,6.59,238.39,238.35,6.15]
[1758298870836,10.3637,238.39,238.35,6.15]
[1758298871137,6.59,238.39,238.35,6.15]
[1758298871337,6.62152426,238.4,238.32,316.98]
[1758298871538,6.62152426,238.4,238.33,103.1]
[1758298871836,6.62152426,238.4,238.32,316.98]
[1758298872036,6.62152426,238.4,238.33,103.08]
[1758298872731,3.774,238.37,238.33,103.08]
[1758298872938,6.62152426,238.4,238.33,109.23]
[1758298873337,3.7743,238.35,238.33,109.23]
[1758298873536,60.17035182,238.39,238.29,6.15]
[1758298873736,60.17035182,238.39,238.3,11.84]
[1758298873737,6.59,238.36,238.3,11.84]
[1758298874040,60.17555182,238.37,238.31,11.84]
[1758298874239,60.17555182,238.37,238.26,6.15]
[1758298874240,6.59,238.34,238.32,38.96]
[1758298874737,6.59,238.34,238.27,6.15]
[1758298874941,6.59,238.34,238.28,45.32]
[1758298875140,6.59,238.34,238.27,6.15]
[1758298875141,3.7753,238.29,238.27,6.15]
[1758298875339,6.59,238.29,238.21,6.15]
[1758298875543,6.59,238.29,238.22,103.1]
[1758298875840,3.7756,238.26,238.22,103.1]
[1758298876031,10.3656,238.26,238.22,109.25]
[1758298876231,6.61672575,238.28,238.19,317.06]
[1758298876434,3.7761,238.23,238.2,109.63]
[1758298876635,6.61672575,238.28,238.2,109.63]
[1758298877540,6.61672575,238.28,238.19,317.06]
[1758298877739,6.61672575,238.28,238.24,7.61995182]
[1758298877939,0.02672575,238.28,238.25,6.15]
[1758298878334,0.02672575,238.28,238.25,7.61995182]
[1758298879039,0.02672575,238.28,238.24,103.46]
[1758298879240,0.02672575,238.28,238.25,6.15]
[1758298879638,0.02672575,238.28,238.24,103.52]
[1758298879842,0.02672575,238.28,238.25,6.15]
[1758298880551,0.02672575,238.28,238.24,103.52]
[1758298880742,0.02672575,238.28,238.25,6.15]
[1758298881145,0.02672575,238.28,238.24,104.98995182]
[1758298881547,3.80202575,238.28,238.25,6.15]
[1758298881740,0.02672575,238.28,238.25,6.15]
[1758298881947,0.02672575,238.28,238.24,104.98995182]
[1758298881948,6.61672575,238.28,238.21,7.61995182]
[1758298882248,6.61672575,238.28,238.22,109.61]
[1758298882651,3.776,238.24,238.22,103.46]
[1758298883345,6.59,238.23,238.19,317.06]
[1758298883650,10.366,238.24,238.2,109.63]
[1758298885146,6.59,238.24,238.2,103.48]
[1758298885345,6.59,238.24,238.21,103.56]
[1758298885539,3.7761,238.23,238.21,103.56]
[1758298886144,3.7761,238.23,238.19,317.06]
[1758298886339,3.7761,238.23,238.21,103.56]
[1758298889544,3.7761,238.23,238.19,323.21]
[1758298889545,3.7764,238.22,238.19,323.21]
[1758298889750,3.7764,238.22,238.2,109.64]
[1758298890445,3.7764,238.22,238.2,103.48]
[1758298890648,3.7764,238.22,238.21,6.16]
[1758298891955,3.7764,238.22,238.12,6.16]
[1758298891956,7.55,238.22,238.12,6.16]
[1758298892153,58.7449,238.21,238.13,29.76]
[1758298892552,7.13,238.22,238.13,29.76]
[1758298892553,0.0322792,238.19,238.14,6.16]
[1758298892855,0.0322792,238.19,238.13,29.76]
[1758298893456,3.777,238.18,238.13,29.76]
[1758298893656,3.777,238.18,238.14,6.16]
[1758298893851,3.777,238.18,238.1,12.82388441]
[1758298893852,7.13,238.18,238.1,12.82388441]
[1758298894157,3.7773,238.16,238.12,6.16]
[1758298894358,0.0322792,238.19,238.13,6.16]
[1758298894556,7.13,238.22,238.13,6.16]
[1758298894857,0.02991958,238.18,238.13,6.16]
[1758298896552,0.02991958,238.18,238.14,6.16]
[1758298896751,0.02991958,238.18,238.17,8.46186775]
[1758298896952,0.02991958,238.18,238.17,109.86]
[1758298897153,0.02991958,238.18,238.17,109.9]
[1758298897657,0.02991958,238.18,238.17,6.16]
[1758298897857,0.02991958,238.18,238.17,58.9]
[1758298898954,0.02991958,238.18,238.11,2.30186775]
[1758298899159,0.02991958,238.18,238.12,59.6]
[1758298899858,3.7772,238.17,238.12,6.16]
[1758298900059,3.7772,238.17,238.14,6.16]
[1758298900460,3.7772,238.17,238.13,103.72]
[1758298900661,3.7772,238.17,238.14,6.16]
[1758298901159,3.7772,238.17,238.15,6.16]
[1758298901360,0.02991958,238.18,238.15,6.16]
[1758298901552,0.02991958,238.18,238.14,103.72]
[1758298901956,0.02991958,238.18,238.15,6.16]
[1758298902258,0.02991958,238.18,238.15,109.82]
[1758298902456,0.02991958,238.18,238.15,103.66]
[1758298902858,0.02991958,238.18,238.16,6.16]
[1758298903060,0.02991958,238.18,238.15,103.66]
[1758298903761,0.02991958,238.18,238.16,6.16]
[1758298904160,0.02991958,238.18,238.15,103.66]
[1758298904862,0.02991958,238.18,238.16,6.16]
[1758298905564,3.7771,238.17,238.11,6.16]
[1758298905863,10.9071,238.17,238.12,94.48]
[1758298906062,10.9071,238.17,238.13,6.16]
[1758298910462,3.7771,238.17,238.13,6.16]
[1758298910654,3.7771,238.17,238.13,103.56]
[1758298910854,3.7771,238.17,238.13,109.72]
[1758298911056,3.7774,238.15,238.13,6.16]
[1758298911457,3.7774,238.15,238.12,109.7]
[1758298911654,3.7776,238.14,238.1,103.52]
[1758298911865,7.15991958,238.18,238.11,6.16]
[1758298912757,3.7772,238.16,238.11,6.16]
[1758298912965,0.02991958,238.18,238.11,6.16]
[1758298914664,3.80691958,238.18,238.11,6.16]
[1758298915368,3.80691958,238.18,238.12,103.44]
[1758298915866,3.80691958,238.18,238.1,16.30848642]
[1758298915867,0.02991958,238.18,238.13,103.44]
[1758298916864,3.7775,238.14,238.12,103.42]
[1758298917168,7.13,238.17,238.08,6.16]
[1758298917367,3.7778,238.13,238.1,6.16]
[1758298918056,0.02694297,238.14,238.09,41.8]
[1758298918257,0.02694297,238.14,238.1,6.17]
[1758298918463,0.02694297,238.14,238.09,41.8]
[1758298918665,0.02694297,238.14,238.1,6.17]
[1758298918962,0.02694297,238.14,238.09,41.8]
[1758298919163,0.02694297,238.14,238.09,54.08416522]
[1758298919469,0.02694297,238.14,238.1,6.17]
[1758298919671,0.02694297,238.14,238.09,54.08416522]
[1758298919971,0.02694297,238.14,238.11,6.17]
[1758298920269,0.02694297,238.14,238.1,6.17]
[1758298920472,0.02694297,238.14,238.12,6.17]
[1758298920669,0.02694297,238.14,238.11,3.7779]
[1758298920874,0.02694297,238.14,238.12,6.17]
[1758298921269,0.02694297,238.14,238.11,3.7779]
[1758298921666,0.02694297,238.14,238.12,6.17]
[1758298921861,0.02694297,238.14,238.11,3.7779]
[1758298922071,0.02694297,238.14,238.12,6.17]
[1758298922275,0.02694297,238.14,238.11,3.7779]
[1758298922461,0.02694297,238.14,238.1,6.17]
[1758298922667,0.02694297,238.14,238.09,57.86236522]
[1758298922962,0.02694297,238.14,238.09,54.08416522]
[1758298923168,0.02694297,238.14,238.1,103.32]
[1758298923375,0.02694297,238.14,238.07,3.7786]
[1758298923575,0.02694297,238.14,238.08,109.47]
[1758298923871,0.02694297,238.14,238.08,6.17]
[1758298924068,0.02694297,238.14,238.1,6.17]
[1758298924266,0.02694297,238.14,238.09,103.3]
[1758298924671,0.02694297,238.14,238.1,6.17]
[1758298925070,0.02694297,238.14,238.09,103.3]
[1758298925271,0.02694297,238.14,238.07,6.17]
[1758298925471,0.02694297,238.14,238.08,103.3]
[1758298925873,3.7781,238.11,238.08,103.3]
[1758298926071,3.7781,238.11,238.08,109.47]
[1758298926976,3.7781,238.11,238.09,6.17]
[1758298927276,0.02694297,238.14,238.09,6.17]
[1758298927476,0.02694297,238.14,238.08,116.11616934]
[1758298927974,0.02694297,238.14,238.1,6.17]
[1758298928175,0.02694297,238.14,238.09,3.7782]
[1758298928375,0.02694297,238.14,238.08,116.11616934]
[1758298928772,0.02694297,238.14,238.08,122.28616934]
[1758298928979,7.11694297,238.14,238.09,109.53]
[1758298929180,0.02694297,238.14,238.1,6.17]
[1758298929477,0.02694297,238.14,238.09,103.36]
[1758298929982,3.7778,238.13,238.1,6.17]
[1758298930282,7.11694297,238.14,238.06,103.32]
[1758298930579,3.7783,238.1,238.07,6.17]
[1758298931678,3.7783,238.1,238.06,103.32]
[1758298931870,3.7783,238.1,238.07,6.17]
[1758298932071,3.7779,238.12,238.06,103.32]
[1758298932472,3.7779,238.12,238.07,6.17]
[1758298932680,3.7779,238.12,238.06,103.32]
[1758298932983,3.80444297,238.14,238.07,6.17]
[1758298933579,0.02694297,238.14,238.09,6.17]
[1758298934474,0.02694297,238.14,238.08,3.7784]
[1758298934672,0.02694297,238.14,238.09,6.17]
[1758298934881,0.02694297,238.14,238.08,3.7784]
[1758298935880,0.02694297,238.14,238.06,116.06545135]
[1758298935881,0.02694297,238.14,238.09,9.9482]
[1758298936083,0.02694297,238.14,238.1,6.17]
[1758298936287,0.02694297,238.14,238.12,6.17]
[1758298936678,0.02694297,238.14,238.11,103.32]
[1758298937476,0.02694297,238.14,238.12,6.17]
[1758298937881,7.09,238.27,238.14,6.14]
[1758298938082,2.95131078,238.26,238.17,6.14]
[1758298938284,2.95131078,238.25,238.19,6.14]
[1758298938491,7.09,238.27,238.19,6.14]
[1758298938683,2.95042762,238.26,238.19,6.14]
[1758298938983,7.09,238.27,238.19,6.14]
[1758298939188,7.09,238.27,238.2,0.02939348]
[1758298939382,3.7753,238.28,238.21,6.14]
[1758298939679,7.09,238.37,238.21,6.14]
[1758298939984,2.94916544,238.36,238.25,6.14]
[1758298940186,2.94916544,238.35,238.26,24.86]
[1758298940384,2.94916544,238.34,238.26,24.89008739]
[1758298940683,6.72366544,238.33,238.26,24.89008739]
[1758298940878,7.09,238.37,238.27,6.14]
[1758298941085,2.94247881,238.36,238.28,44.36]
[1758298941284,65.69145023,238.42,238.29,6.14]
[1758298941285,2.94247881,238.35,238.29,6.14]
[1758298941490,0.03195559,238.34,238.29,6.14]
[1758298941980,0.03195559,238.34,238.29,0.02950801]
[1758298942182,7.12195559,238.34,238.29,0.02950801]
[1758298942383,7.12195559,238.34,238.3,31.78]
[1758298942883,7.12195559,238.34,238.31,6.14]
[1758298942884,0.03195559,238.34,238.31,6.14]
[1758298943482,7.09,238.33,238.29,6.16950801]
[1758298943784,7.09,238.33,238.3,64.34]
[1758298944382,0.03195559,238.34,238.3,64.34]
[1758298944989,0.03195559,238.34,238.31,6.14]
[1758298945190,0.03195559,238.34,238.3,64.34]
[1758298945896,0.03195559,238.34,238.3,65.81164997]
[1758298946098,0.03195559,238.34,238.31,6.14]
[1758298946298,0.03195559,238.34,238.33,6.14]
[1758298949197,0.03195559,238.34,238.33,7.61164997]
[1758298951000,0.03195559,238.34,238.33,8.03164997]
[1758298951802,0.03195559,238.34,238.33,110.95164997]
[1758298952601,0.03195559,238.34,238.33,7.61164997]
[1758298952901,0.03195559,238.34,238.33,110.97164997]
[1758298958701,0.03195559,238.34,238.33,110.87164997]
[1758298958906,0.03195559,238.34,238.33,6.14]
[1758298959104,0.03195559,238.34,238.31,18.69096071]
[1758298959299,0.03195559,238.34,238.32,57.57]
[1758298959604,0.03195559,238.34,238.33,103.26]
[1758298960198,0.03195559,238.34,238.33,109.39]
[1758298964205,0.03195559,238.34,238.33,110.86164997]
[1758298979114,0.03195559,238.34,238.33,110.62164997]
[1758298981112,0.03195559,238.34,238.33,110.58164997]
[1758298983620,0.03195559,238.34,238.33,110.54164997]
[1758298986926,7.22,238.46,238.34,6.13]
[1758298987120,7.22,238.46,238.39,6.13]
[1758298987319,7.22,238.46,238.42,6.13]
[1758298987516,7.22,238.46,238.43,102.9]
[1758298989327,12.46354997,238.5,238.43,109.03]
[1758298989628,2.92319042,238.49,238.44,102.88]
[1758298989821,7.22,238.47,238.44,102.88]
[1758298990426,7.22,238.47,238.45,102.86]
[1758298990927,3.7719,238.5,238.45,108.99]
[1758298990928,7.22,238.49,238.45,108.99]
[1758298992023,3.7719,238.5,238.45,108.99]
[1758298992227,7.22,238.49,238.45,108.99]
[1758298993429,7.22,238.49,238.45,102.86]
[1758298993626,7.22,238.49,238.46,6.13]
[1758298993924,7.22,238.49,238.47,102.82]
[1758298994724,7.22,238.51,238.48,6.13]
[1758298994921,7.22,238.51,238.43,3.7728]
[1758298994922,7.22,238.51,238.49,102.82]
[1758298995121,7.22,238.51,238.5,102.8]
[1758298995334,7.22,238.51,238.5,102.78]
[1758298995632,12.46344997,238.51,238.5,102.78]
[1758298996527,5.24344997,238.51,238.48,0.03131856]
[1758298996730,7.22,238.5,238.49,102.78]
[1758298997033,7.22,238.5,238.48,0.03131856]
[1758298997232,7.22,238.5,238.49,22.02]
[1758298997636,3.7713,238.53,238.49,22.02]
[1758298997835,7.22,238.52,238.49,22.02]
[1758299000325,7.22,238.53,238.49,28.15]
[1758299000932,7.22,238.53,238.5,6.13]
[1758299001234,8.69164997,238.56,238.49,28.15]
[1758299001431,7.22,238.56,238.49,28.15]
[1758299001627,7.22,238.56,238.5,6.13]
[1758299002239,7.22,238.56,238.5,7.60164997]
[1758299002438,7.22,238.56,238.5,11.37334997]
[1758299002834,3.7704,238.59,238.5,11.37334997]
[1758299003036,12.46174997,238.61,238.51,6.13]
[1758299003634,12.46174997,238.61,238.54,0.02891267]
[1758299003836,12.46174997,238.61,238.55,84.92]
[1758299004736,3.7703,238.6,238.54,0.02891267]
[1758299004936,1.47164997,238.61,238.54,0.02891267]
[1758299005132,7.22,238.57,238.54,0.02891267]
[1758299005331,58.6432,238.63,238.54,0.02891267]
[1758299005332,8.69164997,238.55,238.54,0.02891267]
[1758299006941,1.47164997,238.55,238.47,60.86]
[1758299007141,7.22,238.54,238.47,60.86]
[1758299007742,7.22,238.53,238.47,60.86]
[1758299008042,7.22,238.5,238.48,0.02689193]
[1758299008742,7.18,238.5,238.48,0.02689193]
[1758299008937,3.7718,238.51,238.48,0.02689193]
[1758299009144,3.7719,238.5,238.48,0.02689193]
[1758299009643,3.7719,238.5,238.48,6.13689193]
[1758299010644,3.7715,238.52,238.48,6.13689193]
[1758299010844,3.7715,238.52,238.49,6.11]
[1758299011044,7.18,238.51,238.48,0.02689193]
[1758299011842,58.6577,238.57,238.48,0.02689193]
[1758299012048,7.18,238.56,238.48,0.02689193]
[1758299013553,3.7711,238.55,238.48,0.02689193]
[1758299014049,3.7711,238.55,238.48,6.13689193]
[1758299014445,7.18,238.54,238.48,6.13689193]
[1758299015350,7.18,238.54,238.48,0.02689193]
[1758299015550,10.9513,238.54,238.48,0.02689193]